bitfinex/quotes_SOLUSD_20251218
["timestamp","ask_amount","ask_price","bid_price","bid_amount"]
[1766096008280,0.99000001,119.5,119.46,0.66]
[1766096008474,0.99000001,119.51,119.47,0.66]
[1766096008679,0.99000001,119.5,119.47,0.66]
[1766096009303,0.27000001,119.52,119.49,0.66]
[1766096009593,1e-08,119.51,119.49,0.66]
[1766096009796,1e-08,119.51,119.48,0.66]
[1766096009983,9.82,119.54,119.49,0.66]
[1766096010484,0.66,119.55,119.51,0.66]
[1766096011404,9.84,119.58,119.53,0.66]
[1766096011701,20.9916809,119.58,119.54,0.66]
[1766096011902,0.66,119.57,119.54,0.66]
[1766096013303,9.18,119.58,119.54,0.66]
[1766096013489,9.84,119.58,119.54,0.66]
[1766096014396,3.44901541,119.57,119.51,0.66]
[1766096014600,3.44901541,119.57,119.52,0.66]
[1766096015129,0.66,119.55,119.51,0.66]
[1766096015408,2.78901541,119.56,119.51,0.66]
[1766096015589,0.66,119.55,119.51,0.66]
[1766096017099,2.78901541,119.56,119.51,0.66]
[1766096017293,0.66,119.55,119.51,0.66]
[1766096017906,0.66,119.55,119.52,0.66]
[1766096018607,19.61767296,119.56,119.52,0.66]
[1766096018913,20.27767296,119.56,119.52,0.66]
[1766096019207,5.16056732,119.55,119.52,0.66]
[1766096019396,20.27767296,119.56,119.52,0.66]
[1766096019594,4.44728505,119.55,119.53,2.78901541]
[1766096019912,0.66,119.55,119.49,11.59896033]
[1766096020086,3.44901541,119.55,119.49,11.59896033]
[1766096020283,0.66,119.55,119.49,11.59896033]
[1766096020502,2.78901541,119.55,119.49,11.59896033]
[1766096020704,3.44901541,119.55,119.49,11.59896033]
[1766096021202,0.66,119.55,119.49,8.80994492]
[1766096021410,3.44901541,119.55,119.49,11.59896033]
[1766096021711,2.78901541,119.55,119.49,8.80994492]
[1766096022013,3.44901541,119.55,119.49,11.59896033]
[1766096022216,0.66,119.55,119.49,8.80994492]
[1766096022392,0.66,119.55,119.49,11.59896033]
[1766096022589,3.44901541,119.55,119.49,11.59896033]
[1766096022909,3.44901541,119.55,119.49,8.80994492]
[1766096023107,0.66,119.55,119.49,11.59896033]
[1766096023320,3.44901541,119.55,119.49,11.59896033]
[1766096023497,2.78901541,119.54,119.48,10.43767296]
[1766096023698,2.78901541,119.53,119.48,10.43767296]
[1766096024008,3.46901541,119.52,119.45,2.78901541]
[1766096024192,3.46901541,119.52,119.46,2.78901541]
[1766096024193,0.68,119.51,119.46,2.78901541]
[1766096025099,0.68,119.51,119.45,2.78901541]
[1766096025413,2.78901541,119.49,119.43,8.80994492]
[1766096025600,2.78901541,119.5,119.44,2.78901541]
[1766096025798,0.68,119.49,119.45,2.78901541]
[1766096025997,0.68,119.51,119.45,11.16058473]
[1766096026307,2.78901541,119.52,119.47,8.80994492]
[1766096026611,0.68,119.5,119.46,8.80994492]
[1766096026814,0.68,119.5,119.45,2.78901541]
[1766096027292,0.68,119.5,119.46,2.78901541]
[1766096027691,0.68,119.52,119.47,2.78901541]
[1766096027896,0.68,119.52,119.45,27.61927999]
[1766096028087,0.68,119.52,119.47,2.78901541]
[1766096029018,0.68,119.52,119.45,48.54853909]
[1766096029316,2.78901541,119.53,119.47,2.78901541]
[1766096029521,0.68,119.52,119.47,4.37918849]
[1766096029894,0.68,119.53,119.48,4.37918849]
[1766096030096,0.68,119.53,119.45,19.24761788]
[1766096030394,0.68,119.53,119.47,8.37027911]
[1766096030594,0.68,119.54,119.49,4.37918849]
[1766096030817,0.68,119.56,119.51,4.37918849]
[1766096031520,20.9002382,119.62,119.52,4.37918849]
[1766096031830,0.68,119.6,119.55,4.37918849]
[1766096032126,5.05623949,119.59,119.55,4.37918849]
[1766096032294,5.05623949,119.58,119.55,4.37918849]
[1766096032495,5.05623949,119.57,119.55,4.37918849]
[1766096032716,0.68,119.6,119.55,4.37918849]
[1766096032914,5.05515508,119.59,119.55,4.37918849]
[1766096033219,5.05515508,119.58,119.55,4.37918849]
[1766096033420,5.05515508,119.57,119.55,4.37918849]
[1766096033619,0.68,119.6,119.55,4.37918849]
[1766096033806,5.0563969,119.59,119.55,4.37918849]
[1766096034122,5.0563969,119.58,119.55,4.37918849]
[1766096034292,5.0563969,119.57,119.55,4.37918849]
[1766096034496,0.68,119.6,119.55,4.37918849]
[1766096034710,5.05708753,119.59,119.55,4.37918849]
[1766096034916,5.05708753,119.58,119.55,4.37918849]
[1766096035221,5.05708753,119.57,119.55,4.37918849]
[1766096035424,5.05708753,119.56,119.55,13.18913341]
[1766096035635,0.68,119.6,119.55,8.80994492]
[1766096036626,0.68,119.6,119.55,13.18913341]
[1766096036824,19.61767296,119.62,119.54,13.18913341]
[1766096037030,0.68,119.6,119.55,4.37918849]
[1766096037533,0.68,119.6,119.53,8.80994492]
[1766096037831,0.68,119.6,119.55,4.37918849]
[1766096038020,0.68,119.59,119.53,8.80994492]
[1766096038217,0.68,119.59,119.54,4.37918849]
[1766096038540,9.18,119.61,119.52,14.81686145]
[1766096038541,0.68,119.57,119.52,14.81686145]
[1766096041132,0.68,119.57,119.52,10.43767296]
[1766096041430,0.68,119.57,119.51,8.80994492]
[1766096041639,0.68,119.57,119.51,13.18913341]
[1766096041837,0.68,119.57,119.52,4.37918849]
[1766096042029,0.68,119.57,119.51,8.80994492]
[1766096042226,0.68,119.57,119.52,4.37918849]
[1766096042536,0.68,119.61,119.56,4.37918849]
[1766096042742,0.68,119.61,119.57,4.37918849]
[1766096043331,0.68,119.61,119.58,4.37918849]
[1766096043511,19.61767296,119.64,119.58,4.37918849]
[1766096043718,0.68,119.63,119.59,4.37918849]
[1766096044144,0.68,119.63,119.58,14.81686145]
[1766096045342,0.68,119.63,119.56,69.90994492]
[1766096045343,0.68,119.62,119.56,69.90994492]
[1766096045522,0.68,119.62,119.56,14.81686145]
[1766096045924,0.68,119.62,119.57,13.18913341]
[1766096046125,0.68,119.62,119.58,4.37918849]
[1766096046815,0.68,119.62,119.57,8.80994492]
[1766096047140,0.68,119.62,119.57,13.18913341]
[1766096048339,5.88030596,119.61,119.56,14.81686145]
[1766096048644,0.68,119.61,119.56,14.81686145]
[1766096049834,0.68,119.61,119.56,10.43767296]
[1766096050431,0.68,119.61,119.57,4.37918849]
[1766096050750,0.68,119.63,119.58,13.18913341]
[1766096050950,5.1996795,119.62,119.58,13.18913341]
[1766096051136,0.68,119.63,119.58,13.18913341]
[1766096051333,0.68,119.61,119.56,75.91686145]
[1766096053358,0.68,119.61,119.56,82.36458914]
[1766096054556,5.2031751,119.6,119.55,80.7368611]
[1766096054746,5.9231751,119.59,119.55,71.92691618]
[1766096054948,0.72,119.59,119.55,71.92691618]
[1766096055141,0.72,119.59,119.55,61.1]
[1766096055458,0.72,119.59,119.55,71.92691618]
[1766096056957,10.43767296,119.62,119.56,10.82691618]
[1766096057255,0.72,119.6,119.56,10.82691618]
[1766096057659,5.20419788,119.59,119.56,10.82691618]
[1766096057958,0.72,119.6,119.56,10.82691618]
[1766096058158,5.20446843,119.59,119.56,10.82691618]
[1766096058338,0.72,119.6,119.56,10.82691618]
[1766096058838,0.72,119.6,119.56,71.92691618]
[1766096059251,5.20370992,119.59,119.56,61.1]
[1766096059434,0.72,119.58,119.56,61.1]
[1766096059964,0.72,119.61,119.56,71.92691618]
[1766096060165,5.9238488,119.6,119.56,71.92691618]
[1766096060335,0.72,119.6,119.56,71.92691618]
[1766096064464,11.15767296,119.62,119.57,8.80994492]
[1766096064759,5.92344094,119.61,119.57,8.80994492]
[1766096065064,5.20344094,119.6,119.57,8.80994492]
[1766096065366,0.72,119.61,119.57,8.80994492]
[1766096065566,5.17600411,119.6,119.57,8.80994492]
[1766096065869,0.72,119.61,119.57,8.80994492]
[1766096066070,5.17600716,119.6,119.57,8.80994492]
[1766096066257,0.72,119.61,119.57,8.80994492]
[1766096067175,5.17667519,119.6,119.57,19.6368611]
[1766096067392,0.72,119.61,119.57,19.6368611]
[1766096067869,0.72,119.61,119.57,80.7368611]
[1766096068176,5.17701794,119.6,119.57,80.7368611]
[1766096068376,0.72,119.61,119.57,80.7368611]
[1766096068676,5.17704454,119.6,119.57,80.7368611]
[1766096068980,0.72,119.61,119.57,80.7368611]
[1766096069275,5.17704149,119.6,119.57,80.7368611]
[1766096069449,0.72,119.61,119.57,80.7368611]
[1766096069653,5.17950086,119.6,119.57,80.7368611]
[1766096069858,0.72,119.61,119.57,80.7368611]
[1766096070058,5.17950086,119.6,119.57,80.7368611]
[1766096070259,0.72,119.61,119.57,80.7368611]
[1766096070456,5.18335422,119.6,119.57,61.1]
[1766096070771,0.72,119.61,119.57,61.1]
[1766096070978,5.1833586,119.6,119.57,61.1]
[1766096071157,0.72,119.61,119.57,61.1]
[1766096071362,5.18781087,119.6,119.57,61.1]
[1766096071563,5.18781087,119.59,119.57,61.1]
[1766096071750,0.72,119.61,119.57,61.1]
[1766096071950,5.18780782,119.6,119.57,61.1]
[1766096072173,5.18780782,119.59,119.57,61.1]
[1766096072375,0.72,119.6,119.57,61.1]
[1766096072659,5.19273402,119.59,119.57,61.1]
[1766096072950,0.72,119.6,119.57,61.1]
[1766096073150,5.19273402,119.59,119.57,61.1]
[1766096073352,0.72,119.6,119.57,61.1]
[1766096073576,5.19743125,119.59,119.57,61.1]
[1766096073777,0.72,119.6,119.57,61.1]
[1766096073969,5.19743125,119.59,119.57,61.1]
[1766096074167,5.19772414,119.58,119.57,61.1]
[1766096080279,5.91772414,119.58,119.57,61.1]
[1766096080582,5.19772414,119.58,119.57,61.1]
[1766096082160,0.72,119.59,119.57,60.38]
[1766096085388,17.5194732,119.63,119.57,60.38]
[1766096085681,0.66,119.62,119.58,5.05268157]
[1766096086678,0.66,119.62,119.58,0.68]
[1766096089865,4.37268157,119.61,119.56,9.18]
[1766096090070,0.66,119.6,119.55,0.68]
[1766096090280,0.66,119.6,119.55,61.78]
[1766096090784,0.66,119.59,119.55,61.1]
[1766096092467,0.66,119.59,119.55,61.78]
[1766096093084,9.16,119.61,119.56,3.4796357]
[1766096093282,9.82,119.61,119.56,3.4796357]
[1766096093483,0.66,119.6,119.56,61.1]
[1766096097998,0.66,119.6,119.56,61.78]
[1766096098595,0.66,119.6,119.56,61.1]
[1766096100601,9.16,119.61,119.56,61.1]
[1766096100782,0.66,119.66,119.6,9.48994492]
[1766096101101,0.66,119.62,119.57,9.16]
[1766096101273,0.66,119.62,119.56,13.91730866]
[1766096101595,0.72,119.6,119.56,0.68]
[1766096101805,0.72,119.59,119.54,19.59767296]
[1766096101983,0.72,119.59,119.54,10.43767296]
[1766096102683,0.72,119.59,119.54,13.23730866]
[1766096103907,0.72,119.59,119.54,10.43767296]
[1766096104212,2.7996357,119.58,119.53,0.71]
[1766096104375,17.52203009,119.59,119.5,11.60958062]
[1766096104376,0.72,119.56,119.5,11.60958062]
[1766096104578,0.72,119.55,119.5,21.49958062]
[1766096104776,0.72,119.55,119.5,31.93725358]
[1766096105381,18.79970305,119.59,119.52,11.60958062]
[1766096105585,0.72,119.58,119.54,0.71]
[1766096105782,9.16,119.6,119.55,0.71]
[1766096106004,0.72,119.59,119.55,0.71]
[1766096106306,0.72,119.59,119.54,12.31958062]
[1766096108694,0.72,119.59,119.55,9.51994492]
[1766096109005,0.72,119.6,119.56,0.71]
[1766096109305,0.72,119.6,119.55,12.31958062]
[1766096109480,11.15767296,119.6,119.55,73.41958062]
[1766096109681,0.72,119.59,119.55,73.41958062]
[1766096110009,0.72,119.59,119.56,0.71]
[1766096110797,11.15767296,119.6,119.56,0.71]
[1766096113420,11.15767296,119.6,119.54,11.9796357]
[1766096113421,0.72,119.58,119.54,10.43767296]
[1766096114124,0.72,119.58,119.53,0.69]
[1766096114324,0.72,119.57,119.53,0.69]
[1766096116824,0.72,119.59,119.55,0.69]
[1766096117026,0.72,119.59,119.55,61.79]
[1766096117228,0.72,119.61,119.57,0.69]
[1766096118309,0.72,119.61,119.56,9.49994492]
[1766096118611,0.72,119.61,119.57,0.69]
[1766096122014,0.72,119.6,119.56,69.90994492]
[1766096122324,0.72,119.6,119.56,70.59994492]
[1766096122703,0.72,119.6,119.56,61.79]
[1766096123209,3.5196357,119.6,119.56,61.79]
[1766096123404,0.72,119.59,119.56,61.1]
[1766096123605,0.59998997,119.57,119.53,0.69]
[1766096123831,0.59998997,119.57,119.53,61.79]
[1766096126543,0.72,119.55,119.51,69.90994492]
[1766096126712,0.72,119.55,119.52,0.69]
[1766096127032,0.72,119.57,119.53,0.69]
[1766096127253,0.72,119.56,119.51,61.79]
[1766096127431,0.72,119.56,119.52,0.69]
[1766096127943,0.72,119.55,119.51,61.79]
[1766096130446,0.72,119.55,119.52,0.69]
[1766096131553,0.72,119.56,119.52,0.69]
[1766096136151,0.72,119.56,119.52,61.79]
[1766096136347,0.72,119.56,119.53,0.69]
[1766096136546,0.72,119.56,119.53,0.53193]
[1766096140559,0.72,119.56,119.52,61.78]
[1766096141657,0.72,119.56,119.52,61.1]
[1766096141962,0.72,119.56,119.53,0.68]
[1766096143564,0.72,119.56,119.52,61.1]
[1766096143764,0.72,119.56,119.52,61.78]
[1766096149253,0.72,119.56,119.52,61.1]
[1766096149458,0.72,119.56,119.53,0.68]
[1766096151076,17.54388918,119.57,119.52,61.1]
[1766096151265,0.72,119.55,119.52,61.78]
[1766096154455,0.72,119.54,119.52,61.1]
[1766096154847,0.72,119.53,119.52,59.66]
[1766096155079,0.72,119.53,119.49,0.71]
[1766096155374,0.72,119.53,119.5,0.71]
[1766096155778,44.09090796,119.55,119.5,0.71]
[1766096155985,0.63,119.54,119.5,0.71]
[1766096156183,9.81,119.54,119.5,0.71]
[1766096156682,9.18,119.54,119.5,4.37656172]
[1766096156880,10.43767296,119.55,119.52,0.71]
[1766096157074,12.73955746,119.58,119.52,0.71]
[1766096157288,20.24767296,119.57,119.52,0.71]
[1766096158187,28.61097726,119.57,119.52,0.71]
[1766096158682,32.35753898,119.57,119.53,0.71]
[1766096158860,0.63,119.56,119.53,0.71]
[1766096160786,20.90516994,119.59,119.54,4.37656172]
[1766096160787,0.63,119.59,119.54,4.37656172]
[1766096160970,9.81,119.59,119.55,0.71]
[1766096162297,0.63,119.58,119.55,0.71]
[1766096163174,5.00656172,119.58,119.55,0.71]
[1766096163794,0.63,119.57,119.53,61.82]
[1766096164566,5.00656172,119.57,119.53,61.82]
[1766096164963,0.63,119.57,119.53,61.82]
[1766096165268,0.63,119.57,119.54,0.72]
[1766096165789,0.63,119.57,119.54,61.82]
[1766096167074,9.81,119.57,119.54,61.82]
[1766096167290,0.63,119.57,119.54,61.82]
[1766096167471,9.81,119.57,119.54,61.82]
[1766096168383,9.18,119.57,119.54,61.1]
[1766096168583,9.18,119.57,119.54,61.82]
[1766096168882,9.81,119.57,119.54,61.82]
[1766096169076,0.63,119.56,119.52,75.00650664]
[1766096169395,0.63,119.56,119.52,61.82]
[1766096169969,0.63,119.56,119.53,0.72]
[1766096170691,9.18,119.57,119.53,0.72]
[1766096170991,9.81,119.57,119.54,0.72]
[1766096171492,9.18,119.58,119.54,0.72]
[1766096174394,9.81,119.58,119.54,0.72]
[1766096180596,9.81,119.58,119.55,0.66]
[1766096181488,9.18,119.58,119.55,0.66]
[1766096181812,9.81,119.58,119.55,0.66]
[1766096182001,9.81,119.58,119.54,61.76]
[1766096182176,0.63,119.57,119.54,61.76]
[1766096185198,9.18,119.58,119.54,61.1]
[1766096185497,9.18,119.58,119.55,0.66]
[1766096186499,9.18,119.58,119.55,61.1]
[1766096186707,9.18,119.58,119.56,0.66]
[1766096189009,0.63,119.59,119.56,0.66]
[1766096189218,9.81,119.59,119.56,0.66]
[1766096189514,0.63,119.66,119.58,0.66]
[1766096189695,0.63,119.64,119.6,0.66]
[1766096190013,0.63,119.63,119.6,0.66]
[1766096196511,23.80287702,119.64,119.6,0.66]
[1766096196695,0.63,119.63,119.6,0.66]
[1766096200394,0.2,119.67,119.62,4.48656172]
[1766096200714,0.69,119.63,119.59,0.11]
[1766096200910,0.69,119.62,119.59,0.11]
[1766096201493,5.06656172,119.62,119.57,0.11]
[1766096201699,0.69,119.62,119.58,0.11]
[1766096203821,0.69,119.62,119.58,4.48656172]
[1766096204016,0.69,119.62,119.58,4.37656172]
[1766096204342,0.69,119.62,119.59,0.11]
[1766096205536,4.37656172,119.61,119.58,61.1]
[1766096205692,4.37656172,119.59,119.54,4.37656172]
[1766096205897,0.66,119.58,119.55,0.11]
[1766096206205,0.66,119.58,119.54,0.11]
[1766096206806,0.66,119.6,119.57,4.37656172]
[1766096207623,0.66,119.6,119.58,4.37656172]
[1766096208328,10.43767296,119.61,119.58,4.37656172]
[1766096208505,10.43767296,119.61,119.58,4.48656172]
[1766096209202,11.09767296,119.61,119.58,4.48656172]
[1766096210016,11.09767296,119.61,119.58,0.11]
[1766096210714,0.66,119.61,119.58,0.11]
[1766096213328,0.66,119.61,119.58,61.21]
[1766096214399,0.66,119.61,119.58,61.1]
[1766096217632,0.66,119.61,119.58,61.21]
[1766096217812,0.66,119.61,119.58,61.1]
[1766096218214,0.66,119.6,119.58,61.1]
[1766096219229,0.66,119.6,119.56,64.00862444]
[1766096221030,0.66,119.59,119.56,61.1]
[1766096222332,0.66,119.59,119.56,64.00862444]
[1766096222529,30.75643128,119.62,119.56,64.00862444]
[1766096222730,0.71,119.61,119.57,2.90862444]
[1766096223034,21.59643128,119.62,119.57,2.90862444]
[1766096223035,0.71,119.6,119.57,2.90862444]
[1766096223235,0.71,119.6,119.57,2.79862444]
[1766096224917,20.30767296,119.62,119.58,0.11]
[1766096225122,0.71,119.61,119.58,61.21]
[1766096226521,0.71,119.61,119.58,61.1]
[1766096229353,19.59767296,119.62,119.58,61.1]
[1766096229549,0.71,119.61,119.58,61.21]
[1766096231439,0.71,119.61,119.58,61.1]
[1766096231840,0.71,119.61,119.58,61.21]
[1766096232764,2.79862444,119.61,119.56,80.69767296]
[1766096232936,0.66,119.6,119.56,70.39]
[1766096234229,0.66,119.6,119.57,0.11]
[1766096235240,8.36132085,119.6,119.56,61.1]
[1766096235443,0.66,119.59,119.56,61.1]
[1766096235735,0.66,119.59,119.56,61.21]
[1766096236364,0.66,119.59,119.56,61.1]
[1766096237140,0.66,119.59,119.55,64.00862444]
[1766096238257,0.66,119.59,119.55,61.1]
[1766096238465,0.66,119.57,119.54,61.21]
[1766096238760,0.66,119.57,119.54,64.00862444]
[1766096240758,11.09767296,119.6,119.57,0.11]
[1766096240958,0.66,119.62,119.58,2.90862444]
[1766096241162,0.66,119.61,119.58,2.90862444]
[1766096243255,0.66,119.61,119.58,0.11]
[1766096243958,0.66,119.61,119.58,2.90862444]
[1766096244361,0.66,119.61,119.58,0.11]
[1766096244855,0.66,119.61,119.58,61.1]
[1766096246770,0.66,119.6,119.58,61.1]
[1766096250474,0.66,119.62,119.58,64.00862444]
[1766096250674,0.66,119.62,119.59,2.90862444]
[1766096250859,0.66,119.62,119.59,0.11]
[1766096251064,0.66,119.62,119.57,11.71856936]
[1766096251759,30.75591255,119.63,119.58,0.11]
[1766096251963,0.66,119.62,119.58,0.11]
[1766096252359,0.66,119.62,119.58,2.90862444]
[1766096252874,0.66,119.62,119.58,0.11]
[1766096253373,0.66,119.62,119.57,8.80994492]
[1766096253574,0.66,119.62,119.57,11.71856936]
[1766096253774,0.66,119.62,119.57,8.91994492]
[1766096253980,0.66,119.62,119.57,11.71856936]
[1766096254453,0.66,119.62,119.58,0.11]
[1766096256372,3.45862444,119.61,119.57,61.1]
[1766096256670,0.66,119.6,119.57,61.21]
[1766096257173,0.66,119.6,119.57,61.1]
[1766096257765,0.66,119.59,119.57,61.1]
[1766096257952,0.66,119.59,119.55,61.21]
[1766096259079,0.66,119.59,119.55,64.00862444]
[1766096260175,9.16,119.6,119.57,0.11]
[1766096260373,9.82,119.6,119.57,61.21]
[1766096260965,0.66,119.6,119.57,61.21]
[1766096264393,0.66,119.6,119.57,64.00862444]
[1766096264578,0.66,119.6,119.57,61.21]
[1766096265880,11.80852052,119.62,119.58,0.11]
[1766096266088,9.00989608,119.62,119.58,61.21]
[1766096266281,0.65,119.61,119.58,61.21]
[1766096266584,19.44720185,119.63,119.59,0.11]
[1766096266773,28.60720185,119.63,119.59,0.11]
[1766096266969,0.65,119.62,119.59,0.11]
[1766096267575,0.65,119.63,119.59,2.90862444]
[1766096267887,0.65,119.66,119.62,0.11]
[1766096268087,0.65,119.66,119.61,2.79862444]
[1766096268291,0.65,119.66,119.63,0.11]
[1766096268993,0.65,119.66,119.63,2.90862444]
[1766096271091,0.65,119.66,119.63,8.91994492]
[1766096271798,0.65,119.64,119.6,9.29]
[1766096272094,0.65,119.64,119.6,18.45]
[1766096272404,2.79862444,119.64,119.6,9.27]
[1766096272703,0.65,119.61,119.57,0.11]
[1766096274295,0.65,119.63,119.58,0.11]
[1766096274599,3.44862444,119.63,119.58,0.11]
[1766096277302,0.65,119.62,119.58,0.11]
[1766096278675,0.65,119.62,119.58,61.21]
[1766096282502,0.65,119.62,119.59,0.11]
[1766096282709,18.7957622,119.65,119.59,0.11]
[1766096282710,11.12767296,119.65,119.6,0.11]
[1766096282909,14.80985961,119.65,119.6,0.11]
[1766096283082,0.69,119.64,119.6,0.11]
[1766096286007,4.57218665,119.67,119.6,65.47218665]
[1766096286315,0.69,119.66,119.61,0.11]
[1766096286686,0.63,119.66,119.61,0.11]
[1766096287785,4.37218665,119.65,119.6,25.29668034]
[1766096287993,4.37218665,119.64,119.6,8.97994492]
[1766096288703,5.06218665,119.64,119.6,8.97994492]
[1766096289211,0.69,119.64,119.6,8.97994492]
[1766096289513,0.69,119.64,119.61,0.17]
[1766096289887,0.69,119.64,119.6,8.97994492]
[1766096290214,0.69,119.63,119.59,10.43767296]
[1766096290410,0.69,119.63,119.59,10.60767296]
[1766096293418,0.69,119.63,119.59,71.70767296]
[1766096295720,0.69,119.63,119.59,71.53767296]
[1766096296212,0.69,119.62,119.59,71.53767296]
[1766096296516,0.69,119.62,119.59,61.1]
[1766096299218,0.69,119.62,119.59,61.27]
[1766096304028,4.37218665,119.6,119.57,8.35771015]
[1766096304324,5.06218665,119.61,119.56,0.71]
[1766096304530,5.06218665,119.61,119.57,0.71]
[1766096304731,0.69,119.61,119.57,0.71]
[1766096305910,0.69,119.6,119.57,0.71]
[1766096314234,0.69,119.6,119.57,60.37]
[1766096317837,4.37218665,119.61,119.58,0.71]
[1766096318062,0.69,119.61,119.58,0.71]
[1766096318760,0.69,119.61,119.58,60.37]
[1766096318939,0.69,119.59,119.58,59.66]
[1766096320162,5.06218665,119.6,119.58,59.66]
[1766096321655,4.77118665,119.6,119.58,59.66]
[1766096323264,4.77118665,119.6,119.57,60.37]
[1766096323563,4.37218665,119.59,119.57,60.37]
[1766096323967,5.06218665,119.6,119.57,60.37]
[1766096324167,0.67,119.59,119.57,60.37]
[1766096326268,5.04218665,119.6,119.57,60.37]
[1766096329669,0.67,119.62,119.58,0.68]
[1766096329876,5.04218665,119.61,119.58,0.68]
[1766096330043,0.67,119.6,119.57,60.34]
[1766096334672,0.67,119.62,119.58,0.68]
[1766096334849,0.67,119.62,119.58,59.66]
[1766096335173,0.67,119.64,119.59,0.68]
[1766096335374,0.67,119.64,119.6,0.68]
[1766096335574,0.67,119.63,119.6,0.68]
[1766096336344,19.59767296,119.65,119.6,0.68]
[1766096336550,5.04218665,119.64,119.61,0.68]
[1766096336764,4.37218665,119.63,119.6,60.34]
[1766096336960,0.67,119.62,119.6,59.66]
[1766096337150,4.37218665,119.62,119.6,59.66]
[1766096337350,0.67,119.61,119.6,59.66]
[1766096337580,0.67,119.61,119.58,9.86]
[1766096338378,0.67,119.62,119.59,0.68]
[1766096346470,0.2,119.67,119.6,8.80994492]
[1766096346671,0.86,119.67,119.63,0.71]
[1766096347062,0.2,119.67,119.65,0.71]
[1766096348383,0.2,119.67,119.61,10.43767296]
[1766096348384,0.66,119.65,119.61,10.43767296]
[1766096348584,3.45860097,119.62,119.59,3.35050466]
[1766096348759,3.45860097,119.62,119.59,0.71]
[1766096349082,0.66,119.62,119.59,0.71]
[1766096353072,0.66,119.62,119.59,60.37]
[1766096356800,3.51860097,119.66,119.61,0.68]
[1766096357098,0.72,119.65,119.61,60.34]
[1766096357302,3.51860097,119.65,119.61,60.34]
[1766096359288,0.72,119.64,119.61,60.34]
[1766096360692,0.72,119.63,119.59,0.68]
[1766096360882,0.72,119.63,119.6,0.68]
[1766096361599,3.51860097,119.64,119.6,0.68]
[1766096363404,2.79860097,119.64,119.6,0.68]
[1766096363703,3.51860097,119.64,119.6,0.68]
[1766096364708,0.72,119.63,119.6,60.34]
[1766096365081,3.51860097,119.64,119.61,0.68]
[1766096365402,0.72,119.63,119.6,59.66]
[1766096365785,0.72,119.63,119.6,60.34]
[1766096377209,2.79860097,119.64,119.6,59.66]
[1766096377521,3.51860097,119.63,119.61,0.68]
[1766096377692,3.51860097,119.63,119.6,59.66]
[1766096377899,0.72,119.62,119.6,59.66]
[1766096379321,0.72,119.61,119.59,59.66]
[1766096379515,3.51860097,119.61,119.59,59.66]
[1766096380022,3.51860097,119.61,119.58,0.68]
[1766096380422,0.72,119.6,119.57,9.86]
[1766096385612,0.72,119.6,119.57,69.5]
[1766096385811,0.68,119.59,119.57,69.5]
[1766096386221,0.68,119.59,119.57,60.32]
[1766096386425,0.68,119.58,119.57,59.66]
[1766096386912,3.47860097,119.59,119.56,0.66]